bitfinex-derivatives/quotes_ETHF0:USTF0_20251021
["timestamp","ask_amount","ask_price","bid_price","bid_amount"]
[1761075936727,6.1705947,4007.1,4007.0,0.00192975]
[1761075936922,7.06256258,4007.1,4007.0,0.00192975]
[1761075937228,6.1705947,4007.1,4007.0,0.35962975]
[1761075939026,7.06256258,4007.1,4007.0,0.00192975]
[1761075939435,6.1705947,4007.1,4007.0,0.00192975]
[1761075939729,2.50854652,4007.1,4007.0,0.00192975]
[1761075939924,0.58977,4006.8,4006.7,0.3577]
[1761075940125,1.16935441,4006.8,4006.7,0.3577]
[1761075940826,1.16935441,4006.8,4006.7,0.35964874]
[1761075941738,1.16935441,4006.8,4006.7,0.00194874]
[1761075942534,1.16935441,4006.8,4006.7,0.35964874]
[1761075943535,1.12245441,4006.8,4006.7,0.60034874]
[1761075943931,0.57958441,4006.8,4006.7,0.83334874]
[1761075944238,0.89059781,4007.5,4007.4,0.8314]
[1761075944434,1.43338781,4007.5,4007.4,0.8314]
[1761075944639,2.01293306,4007.5,4007.4,0.8314]
[1761075945634,1.51704306,4007.5,4007.4,0.8314]
[1761075945831,0.57954525,4007.5,4007.4,1.2804]
[1761075948030,0.57954525,4007.5,4007.4,0.8314]
[1761075950335,1.16923525,4007.5,4007.4,0.3577]
[1761075950542,0.62644525,4007.5,4007.4,0.8314]
[1761075950730,0.57954525,4007.5,4007.4,0.8314]
[1761075951628,1.07543525,4007.5,4007.4,0.8314]
[1761075952640,1.07543525,4007.5,4007.4,0.594]
[1761075952940,0.62644525,4007.5,4007.4,0.8223]
[1761075953343,1.07543525,4007.5,4007.4,0.3577]
[1761075953535,1.07543525,4007.5,4007.4,0.8223]
[1761075953735,0.62644525,4007.5,4007.4,0.8223]
[1761075954034,1.07543525,4007.5,4007.4,0.8223]
[1761075954343,1.07543525,4007.5,4007.4,0.594]
[1761075954942,1.07543525,4007.5,4007.4,0.3577]
[1761075955341,1.96603306,4007.5,4007.4,0.3577]
[1761075955536,0.44904,4007.1,4007.0,0.3852]
[1761075955930,1.02858525,4007.1,4007.0,0.7082]
[1761075956442,1.02858525,4007.1,4007.0,0.9365]
[1761075956943,0.57954525,4007.1,4007.0,0.9365]
[1761075957546,1.47014306,4007.4,4007.0,0.6135]
[1761075958044,0.44903,4007.2,4007.0,0.6135]
[1761075958343,0.44903,4007.2,4007.1,0.5593]
[1761075958544,1.029912,4007.2,4007.1,0.5593]
[1761075958946,1.029912,4007.2,4007.1,0.323]
[1761075960237,0.44903,4007.1,4007.0,0.1489]
[1761075960440,0.44906,4006.9,4006.8,0.323]
[1761075960838,0.580882,4006.9,4006.8,0.7876]
[1761075962041,1.029942,4006.9,4006.8,0.7876]
[1761075964149,1.029942,4006.9,4006.8,0.323]
[1761075964744,1.029942,4006.9,4006.8,0.7876]
[1761075965747,0.44907,4006.8,4006.7,0.32494874]
[1761075965948,0.44907,4006.8,4006.7,0.00194874]
[1761075966152,1.92160368,4006.8,4006.7,0.56124874]
[1761075966650,1.029952,4006.8,4006.7,0.32494874]
[1761075967045,1.92152681,4006.8,4006.7,0.32494874]
[1761075967247,1.029952,4006.8,4006.7,0.00194874]
[1761075967648,2.36790382,4006.8,4006.7,0.00194874]
[1761075967856,2.36790382,4006.8,4006.7,0.32494874]
[1761075968056,1.029952,4006.8,4006.7,0.32494874]
[1761075969152,2.36790382,4006.8,4006.7,0.32494874]
[1761075969748,1.029952,4006.8,4006.7,0.00194874]
[1761075969952,2.36790382,4006.8,4006.7,0.00194874]
[1761075972152,2.36790382,4006.8,4006.7,0.32494874]
[1761075972356,2.36790382,4006.8,4006.7,0.00194874]
[1761075972551,5.80129418,4006.8,4005.1,0.323]
[1761075972759,0.44919,4005.7,4005.6,0.5593]
[1761075972956,9.33819,4005.7,4005.6,0.7876]
[1761075973150,50.719072,4005.7,4005.6,0.7876]
[1761075973345,50.719072,4005.7,4005.6,0.323]
[1761075973546,50.72146763,4005.7,4005.6,0.32583353]
[1761075973755,50.27227763,4005.7,4005.6,0.79043353]
[1761075974058,50.72146763,4005.7,4005.6,0.79043353]
[1761075974652,9.92146763,4005.7,4005.6,0.79043353]
[1761075974855,9.92146763,4005.7,4005.6,0.56213353]
[1761075975452,9.92146763,4005.7,4005.6,0.32583353]
[1761075976762,9.92146763,4005.7,4005.6,0.00283353]
[1761075977259,9.92146763,4005.7,4005.6,0.32583353]
[1761075977453,9.92146763,4005.7,4005.6,0.56213353]
[1761075978958,0.89029224,4006.7,4006.0,0.1324]
[1761075979255,2.21458482,4007.6,4006.0,0.1324]
[1761075979256,0.57839943,4006.6,4006.5,0.9192]
[1761075979759,1.33931224,4007.3,4007.2,0.5736]
[1761075979954,0.44903,4007.1,4007.0,0.4805]
[1761075980156,0.44909,4006.7,4006.6,0.5736]
[1761075980858,1.02638531,4006.7,4006.6,0.7868]
[1761075981064,1.02638531,4006.7,4006.6,0.3481]
[1761075983659,0.57729531,4006.7,4006.2,0.3235]
[1761075983863,0.44912,4006.4,4006.2,0.3235]
[1761075984054,0.57729531,4006.3,4006.2,0.3235]
[1761075984256,0.57729531,4006.3,4006.2,0.5549]
[1761075984461,0.57729531,4006.3,4006.2,0.7688]
[1761075985762,1.02641531,4006.3,4006.2,0.7688]
[1761075986259,1.02641531,4006.3,4006.0,0.1324]
[1761075986260,0.44915,4006.1,4006.0,0.9012]
[1761075986455,0.57729531,4006.1,4006.0,0.5777]
[1761075986762,0.44915,4006.1,4006.0,0.5777]
[1761075986957,1.02644531,4006.1,4006.0,0.5777]
[1761075987267,1.02644531,4006.1,4006.0,0.9012]
[1761075987962,1.02644531,4006.1,4006.0,0.4559]
[1761075990559,1.02644531,4006.1,4006.0,0.6873]
[1761075992067,1.02644531,4006.1,4006.0,0.4559]
[1761075992361,1.02644531,4006.1,4006.0,0.6873]
[1761075992763,0.57729531,4006.1,4006.0,1.35036]
[1761075992966,0.89029224,4006.6,4006.5,0.8948]
[1761075993162,1.02794447,4006.6,4006.5,0.4495]
[1761075993367,2.36338283,4006.6,4006.5,0.4495]
[1761075993564,1.02794447,4006.6,4006.5,0.4495]
[1761075993863,1.02794447,4006.6,4006.5,0.8948]
[1761075994165,2.36338283,4006.6,4006.5,0.8948]
[1761075994366,2.36338283,4006.6,4006.5,0.4495]
[1761075995976,2.36338283,4006.6,4006.5,0.6809]
[1761075997172,2.36338283,4006.6,4006.5,0.8948]
[1761075999873,0.57885447,4006.6,4006.5,0.8948]
[1761076000259,0.57885447,4006.6,4006.5,1.0204]
[1761076000768,1.47114895,4006.7,4006.5,1.0204]
[1761076000968,1.47114895,4006.7,4006.6,0.7688]
[1761076002371,0.57885447,4006.7,4006.6,0.7688]
[1761076003172,1.47114895,4006.7,4006.6,0.7688]
[1761076003876,0.57885447,4006.7,4006.6,0.7688]
[1761076004371,1.02793447,4006.7,4006.6,0.7688]
[1761076004764,0.57885447,4006.7,4006.6,0.7688]
[1761076005473,0.89229448,4006.8,4006.6,0.4453]
[1761076005670,0.57885447,4006.7,4006.6,0.4453]
[1761076005873,0.44908,4006.7,4006.6,0.4453]
[1761076006080,0.44908,4006.7,4006.6,0.7688]
[1761076006269,1.92022895,4006.7,4006.6,0.7688]
[1761076006573,1.02793447,4006.7,4006.6,0.7688]
[1761076007275,1.92022895,4006.7,4006.6,0.7688]
[1761076007768,1.92022895,4006.7,4006.3,0.3235]
[1761076007769,0.44911,4006.4,4006.3,0.3235]
[1761076007975,1.3418871,4006.4,4006.3,0.3235]
[1761076008274,0.44915,4006.1,4006.0,0.1324]
[1761076008474,1.34228234,4006.1,4006.0,0.1324]
[1761076008672,0.44915,4006.1,4006.0,0.3638]
[1761076008874,0.89313234,4006.1,4006.0,0.9012]
[1761076009070,1.47198681,4006.1,4006.0,0.9012]
[1761076009466,1.92113681,4006.1,4006.0,0.9012]
[1761076009863,1.47198681,4006.1,4006.0,0.9012]
[1761076010879,1.92113681,4006.1,4006.0,0.9012]
[1761076014675,0.57885447,4006.1,4006.0,0.9012]
[1761076015079,1.02800447,4006.1,4006.0,0.9012]
[1761076016281,1.02800447,4006.1,4006.0,0.6873]
[1761076016883,1.92106134,4006.1,4006.0,0.6873]
[1761076017086,1.92106134,4006.1,4006.0,0.9143]
[1761076019778,1.47191134,4006.1,4006.0,0.9143]
[1761076020382,0.57885447,4006.1,4006.0,1.36346]
[1761076020586,0.57885447,4006.1,4006.0,0.9143]
[1761076020885,0.57885447,4006.1,4006.0,1.36346]
[1761076024788,0.89305687,4006.7,4006.4,0.44911]
[1761076025090,0.89305687,4007.0,4006.9,0.3381]
[1761076025385,0.89556022,4007.3,4007.2,0.3381]
[1761076025585,1.11916022,4007.3,4007.2,0.7833]
[1761076025782,1.67966022,4007.3,4007.2,0.7833]
[1761076025979,0.78660335,4007.3,4007.2,0.7833]
[1761076026278,0.22610335,4007.3,4007.0,0.5794]
[1761076026478,1.11745994,4007.2,4007.1,0.7833]
[1761076026680,1.45225994,4007.2,4007.1,0.7833]
[1761076026991,1.67795994,4007.2,4007.1,0.7833]
[1761076028493,1.11996329,4007.3,4007.2,0.3381]
[1761076028700,0.89636329,4007.3,4007.2,0.7833]
[1761076029297,0.00250335,4007.3,4007.2,0.7833]
[1761076029599,0.7841,4006.7,4006.6,0.4452]
[1761076029785,0.7841,4006.7,4006.6,0.7833]
[1761076030794,0.4493,4006.7,4006.6,0.7833]
[1761076031095,0.7841,4006.7,4006.6,0.7833]
[1761076031597,0.4493,4006.7,4006.6,0.7833]
[1761076034797,0.2236,4006.7,4006.6,0.7833]
[1761076035996,0.89318433,4007.2,4006.6,0.7833]
[1761076036202,0.5584,4007.2,4007.1,0.7833]
[1761076036793,1.13485386,4007.2,4007.1,0.7833]
[1761076037193,0.3348,4006.9,4006.7,0.3381]
[1761076037402,1.36055386,4006.8,4006.7,0.5563]
[1761076037598,1.80962386,4006.8,4006.7,0.5563]
[1761076037798,0.7841,4006.5,4006.4,0.2182]
[1761076037998,1.36055386,4006.5,4006.4,0.4452]
[1761076038403,1.36055386,4006.5,4006.4,0.7833]
[1761076038803,1.36055386,4006.5,4006.4,1.23241]
[1761076040000,0.7664,4006.8,4006.7,0.2099]
[1761076040206,0.57309946,4006.8,4006.7,1.19138]
[1761076041796,0.57309946,4006.8,4006.7,0.7423]
[1761076041993,0.78799946,4006.8,4006.7,0.7423]
[1761076042297,0.78799946,4006.8,4006.7,0.66118]
[1761076042501,0.78799946,4006.8,4006.7,0.88408]
[1761076042707,0.78799946,4006.8,4006.7,1.22168]
[1761076045401,0.57309946,4006.8,4006.7,1.22168]
[1761076049009,1.00209946,4006.8,4006.7,0.7726]
[1761076049306,0.57309946,4006.8,4006.7,1.22168]
[1761076050810,0.78799946,4006.8,4006.7,1.22168]
[1761076051109,0.78799946,4006.8,4006.7,0.7726]
[1761076051309,0.78799946,4006.8,4006.7,1.22168]
[1761076051815,1.79366946,4006.8,4006.0,10.3593922]
[1761076052007,1.22059,4006.6,4006.5,0.5497]
[1761076052210,1.79368946,4006.6,4006.5,0.5497]
[1761076052512,1.34459946,4006.6,4006.5,0.5497]
[1761076053018,1.22065,4006.1,4006.0,0.5497]
[1761076053209,0.7715,4005.9,4005.8,9.0941]
[1761076053409,0.7715,4005.9,4005.8,0.2121]
[1761076053410,1.79376946,4005.9,4005.8,0.2121]
[1761076053610,1.34459946,4005.9,4005.8,0.5497]
[1761076054008,1.00659,4005.7,4005.6,0.55253353]
[1761076054313,1.79378946,4005.7,4005.6,0.00283353]
[1761076054514,0.5574,4004.9,4004.8,0.5497]
[1761076054716,0.57309946,4004.9,4004.8,0.7726]
[1761076055013,3.2078,4005.8,4004.7,3.6571]
[1761076055014,0.2149,4005.9,4005.8,0.7726]
[1761076055405,3.4227,4006.3,4006.0,0.5693]
[1761076055610,3.2078,4006.3,4006.2,0.7726]
[1761076056212,3.4227,4006.3,4006.2,0.7726]
[1761076056517,3.9793,4006.3,4006.2,0.7726]
[1761076057008,0.7715,4006.2,4006.1,0.5497]
[1761076057414,0.7715,4006.2,4006.1,0.2121]
[1761076057816,0.7715,4006.2,4006.1,0.5497]
[1761076059623,0.7715,4006.2,4006.1,0.7726]
[1761076060420,0.2149,4006.2,4006.1,0.7726]
[1761076061811,0.7715,4006.2,4006.1,0.7726]
[1761076064023,0.429,4006.2,4006.1,1.22173]
[1761076065019,0.429,4006.2,4006.1,0.7726]
[1761076065218,0.429,4006.2,4006.1,1.22173]
[1761076065811,0.429,4006.2,4006.1,0.7726]
[1761076066819,1.00114757,4006.2,4006.1,0.7726]
[1761076067220,1.34364757,4006.2,4006.1,0.7726]
[1761076069322,1.79276757,4006.2,4006.1,0.7726]
[1761076070221,1.00114757,4006.2,4006.1,0.7726]
[1761076070423,1.00114757,4006.2,4006.1,1.22173]
[1761076070818,0.78704757,4006.2,4006.1,1.22173]
[1761076071018,0.78704757,4006.2,4006.1,0.7726]
[1761076071019,0.57214757,4006.2,4006.1,0.7726]
[1761076071223,0.80454757,4006.2,4006.1,0.7726]
[1761076072827,1.12184757,4006.2,4006.1,0.7726]
[1761076073218,1.34134757,4006.2,4006.1,0.7726]
[1761076073420,1.02404757,4006.2,4006.1,1.22173]
[1761076073621,0.80454757,4006.2,4006.1,1.22173]
[1761076074625,0.57214757,4006.2,4006.1,1.22173]
[1761076075227,3.7575,4006.8,4006.7,0.79]
[1761076075423,4.99757596,4006.8,4006.7,0.79]
[1761076078135,0.7692,4006.5,4006.4,0.4451]
[1761076078334,1.34071596,4006.5,4006.4,0.4451]
[1761076078536,1.34071596,4006.5,4006.4,0.79]
[1761076080945,1.34071596,4006.5,4006.4,1.2391]
[1761076081242,1.02341596,4006.5,4006.4,1.2391]
[1761076081538,0.57151596,4006.5,4006.4,1.2391]
[1761076081739,0.2324,4006.7,4006.6,0.79]
[1761076082043,1.12165013,4006.7,4006.6,0.79]
[1761076082237,1.34115013,4006.7,4006.6,0.79]
[1761076082737,0.4519,4006.4,4006.3,0.4451]
[1761076083041,1.79025013,4006.4,4006.3,0.2176]
[1761076083233,0.7692,4006.1,4006.0,0.5625]
[1761076083433,0.7692,4006.1,4006.0,0.79]
[1761076084242,1.34115162,4006.1,4006.0,0.79]
[1761076084432,1.34115162,4006.1,4006.0,1.23914]
[1761076084627,1.34115162,4006.1,4006.0,1.37314]
[1761076084835,0.7692,4006.5,4006.3,0.3449]
[1761076085035,1.21828,4006.5,4006.4,0.79]
[1761076085241,1.79026868,4006.5,4006.4,0.5625]
[1761076086646,0.80438868,4006.5,4006.4,1.23909]
[1761076086839,0.80438868,4006.5,4006.4,0.79]
[1761076087344,1.12168868,4006.5,4006.4,0.79]
[1761076088944,1.34118868,4006.5,4006.4,0.79]
[1761076089749,0.80438868,4006.5,4006.4,1.2391]
[1761076090245,0.57198868,4006.5,4006.4,6.2391]
[1761076090446,0.5497,4007.2,4007.1,0.79]
[1761076090637,1.79046484,4007.2,4007.1,0.79]
[1761076092942,0.2195,4006.8,4006.7,0.5724]
[1761076093150,1.34145484,4006.8,4006.7,0.79]
[1761076094049,0.44909,4006.5,4006.3,3.7703]
[1761076094249,0.4519,4006.1,4006.0,0.5625]
[1761076094440,0.2324,4005.9,4005.8,3.42772612]
[1761076094751,1.34122779,4005.9,4005.8,4.00012612]
[1761076095453,1.34122779,4005.9,4005.8,0.56482612]
[1761076098652,1.34122779,4005.9,4005.8,1.24148612]
[1761076098850,1.19766,4004.9,4004.8,0.2214]
[1761076099041,0.3261,4004.5,4004.4,0.537]
[1761076099249,1.3194055,4004.5,4004.4,0.537]
[1761076099748,0.7484,4004.2,4004.1,0.2214]
[1761076099948,0.7484,4003.9,4003.8,3.5234]
[1761076100154,0.7484,4003.9,4003.8,3.7448]
[1761076100453,0.7484,4003.9,4003.8,3.74711545]
[1761076101558,0.7484,4003.9,4003.8,3.96791545]
[1761076103156,0.4223,4003.9,4003.8,3.96791545]
[1761076103856,0.7519,4003.9,4003.8,3.96791545]
[1761076104553,0.4223,4003.9,4003.8,3.96791545]
[1761076104954,0.2099,4003.9,4003.8,3.96791545]
[1761076105152,0.3325348,4004.2,4003.8,3.96791545]
[1761076105153,0.0029348,4004.2,4004.1,1.21005]
[1761076106050,0.0029348,4004.2,4004.1,15.09005]
[1761076106257,0.0029348,4004.2,4004.1,10.09005]
[1761076110061,3.9623,4005.5,4005.1,0.4422]
[1761076110367,4.0819,4005.5,4005.4,0.5502]
[1761076110556,4.65030067,4005.5,4005.4,0.5502]
[1761076110757,4.97990067,4005.5,4005.4,0.5502]
[1761076111059,1.20373,4005.2,4005.1,0.2317]
[1761076111559,1.20373,4005.2,4005.1,0.5502]
[1761076111859,0.7545,4005.2,4005.1,0.7607]
[1761076115373,1.20373,4005.2,4004.7,0.68098]
[1761076115573,0.7545,4004.9,4004.8,0.7607]
[1761076115773,0.7545,4004.9,4004.8,1.20997]
[1761076115968,0.4249,4004.9,4004.8,1.20997]
[1761076116169,0.2137,4005.2,4005.1,1.20994]
[1761076116368,4.41408378,4005.5,4005.4,0.7607]
[1761076116673,4.41408378,4005.5,4005.4,0.5502]
[1761076116674,4.98277416,4005.5,4005.4,0.5502]
[1761076116869,0.3296,4005.1,4004.8,0.3185]
[1761076117068,0.4249,4004.9,4004.8,1.20997]
[1761076117275,0.2137,4004.9,4004.8,1.20997]
[1761076117472,0.2137,4005.2,4005.1,0.4422]
[1761076117671,3.96488378,4005.5,4005.4,0.4422]
[1761076117972,4.53364306,4005.5,4005.4,0.7607]
[1761076118576,4.98284306,4005.5,4005.4,0.7607]
[1761076120369,0.5408,4005.2,4005.1,0.5502]
[1761076120570,0.7545,4005.2,4005.1,0.7607]
[1761076120777,0.2137,4005.2,4005.1,1.20994]
[1761076121280,3.21038378,4005.5,4005.4,0.44921]
[1761076121578,3.96488378,4005.5,4005.4,0.7607]
[1761076122675,3.96488378,4005.5,4005.4,1.20991]
[1761076124174,3.96488378,4005.5,4005.4,0.7607]
[1761076125286,0.75708378,4005.5,4005.4,0.7607]
[1761076126176,1.32729551,4005.5,4005.4,0.7607]
[1761076126879,0.75708378,4005.5,4005.4,1.20991]
[1761076128274,1.32829174,4005.5,4005.4,1.20991]
[1761076128588,0.99869174,4005.5,4005.4,1.20991]
[1761076130584,0.99869174,4005.5,4005.4,0.7607]
[1761076130787,0.7592,4005.2,4004.8,0.79067]
[1761076131084,0.7592,4004.7,4004.6,3.7672]
[1761076131675,0.7592,4004.7,4004.6,3.4258]
[1761076131876,0.7592,4004.7,4004.6,3.7672]
[1761076132183,0.4305,4004.4,4004.3,0.88543]
[1761076132484,0.2146,4004.4,4004.3,0.88543]
[1761076132682,0.2146,4004.4,4004.3,1.22683]
[1761076133188,0.5433,4004.4,4004.3,1.22683]
[1761076134591,0.5433,4004.4,4004.3,0.7775]
[1761076134785,0.7592,4004.4,4004.3,0.7775]
[1761076135792,0.7592,4004.4,4004.3,1.22683]
[1761076139713,0.2146,4004.4,4004.3,1.22683]
[1761076140494,4.41625,4005.0,4004.9,0.5594]
[1761076140689,45.78778773,4005.0,4004.9,0.5594]
[1761076141195,45.78778773,4005.0,4004.9,0.7775]
[1761076141695,3.77933773,4005.0,4004.9,1.22676]
[1761076141901,0.76178378,4005.5,4005.4,0.7775]
[1761076142091,0.3287,4005.1,4004.8,0.3414]
[1761076142399,0.7592,4004.9,4004.8,0.5594]
[1761076142599,1.3307669,4004.9,4004.8,0.7775]
[1761076142792,1.3307669,4004.9,4004.5,0.3563]
[1761076142793,1.4513269,4004.9,4004.5,0.3563]
[1761076142999,0.7592,4004.7,4004.6,0.7775]
[1761076144201,1.33067818,4004.7,4004.6,0.7775]
[1761076146289,1.33067818,4004.7,4004.6,0.3414]
[1761076146495,0.7592,4004.5,4004.4,0.7775]
[1761076148597,0.2146,4004.5,4004.4,1.22682]
[1761076148803,0.2146,4004.5,4004.3,8.878]
[1761076148804,0.2146,4004.8,4004.7,0.5594]
[1761076149195,1.00163868,4004.8,4004.7,0.7775]
[1761076149496,1.33033868,4004.8,4004.7,0.7775]
[1761076150103,0.7592,4004.5,4004.4,0.5594]
[1761076150402,1.33026963,4004.5,4004.4,0.5594]
[1761076151202,1.33025899,4004.5,4004.4,0.5594]
[1761076151905,1.46195899,4004.5,4004.4,0.5594]
[1761076152106,1.33025899,4004.5,4004.4,0.5594]
[1761076152507,1.33025899,4004.5,4004.4,1.22682]
[1761076152700,1.33025899,4004.5,4004.4,0.7775]
[1761076153801,1.77956899,4004.5,4004.4,0.5594]
[1761076154003,0.3287,4004.0,4003.9,0.3414]
[1761076154208,0.4305,4004.0,4003.9,0.7775]
[1761076154408,0.4305,4004.0,4003.9,1.22688]
[1761076154603,3.2078,4004.5,4004.2,0.7775]
[1761076154807,0.78561367,4004.4,4004.3,0.7775]
[1761076155603,3.2078,4004.5,4004.4,1.22682]
[1761076155802,0.00258378,4005.5,4005.2,0.4361]
[1761076156112,0.89353604,4006.0,4005.9,0.79055]
[1761076156403,3.2078,4006.8,4006.7,0.7775]
[1761076156602,3.4224,4007.3,4006.8,0.3414]
[1761076156810,1.00144014,4007.2,4007.1,0.5594]
[1761076157200,1.00376191,4007.2,4007.1,0.56226514]
[1761076157399,1.33246191,4007.2,4007.1,0.00286514]
[1761076158502,1.33246191,4007.2,4007.1,0.22086514]
[1761076158702,1.33246191,4007.2,4007.1,0.56226514]
[1761076159313,0.00232177,4007.2,4007.1,0.78036514]
[1761076160810,0.22112177,4007.2,4007.1,0.78036514]
[1761076161011,0.77322177,4007.2,4007.1,0.00286514]
[1761076161906,0.45212177,4007.2,4007.1,0.79186514]
[1761076162312,0.77322177,4007.2,4007.1,0.79186514]
[1761076162509,0.45212177,4007.2,4007.1,0.79186514]
[1761076163309,0.77322177,4007.2,4007.1,0.79186514]
[1761076164016,0.45212177,4007.2,4007.1,0.79186514]
[1761076164607,0.00232177,4007.2,4007.1,0.79186514]
[1761076168617,0.00232177,4007.2,4007.1,3.99966514]
[1761076170117,0.00232177,4007.2,4007.1,0.79186514]
[1761076170118,0.77322177,4007.2,4007.1,0.79186514]
[1761076170618,0.45212177,4007.2,4007.1,0.79186514]
[1761076170815,0.77322177,4007.2,4007.1,0.79186514]
[1761076172321,0.77322177,4007.2,4007.1,1.24088514]
[1761076172722,0.77322177,4007.2,4007.1,0.79186514]
[1761076173223,0.77322177,4007.2,4007.1,1.24088514]
[1761076173723,0.45212177,4007.2,4007.1,1.24088514]
[1761076174025,0.77322177,4007.2,4007.1,1.24088514]
[1761076174919,0.22112177,4007.2,4007.1,1.24088514]
[1761076176822,0.22112177,4007.2,4007.1,0.79186514]
[1761076177127,0.77322177,4007.2,4007.1,0.79186514]
[1761076177625,0.77322177,4007.2,4007.1,1.24088514]
[1761076180127,0.77322177,4007.2,4007.1,0.79186514]
[1761076180627,0.77322177,4007.2,4007.1,1.24088514]
[1761076181630,1.22223177,4007.2,4007.1,0.56496514]
[1761076181926,0.77322177,4007.2,4007.1,0.79186514]
[1761076182332,0.22112177,4007.2,4007.1,1.24088514]
[1761076182730,3.2078,4008.1,4007.8,0.44893]
[1761076182929,3.2078,4008.1,4008.0,1.37152]
[1761076183134,3.9787,4008.1,4008.0,0.9226]
[1761076183631,3.2078,4008.1,4008.0,1.37152]
[1761076183832,3.21008912,4008.1,4008.0,1.37152]
[1761076184228,3.77999391,4008.1,4008.0,1.37152]
[1761076185028,3.99879391,4008.1,4008.0,0.9226]
[1761076185332,4.55089391,4008.1,4008.0,0.789]
[1761076185733,4.55089391,4008.1,4008.0,0.9226]
[1761076188737,4.55089391,4008.1,4008.0,0.5621]
[1761076189431,0.44893,4007.9,4007.7,0.5621]
[1761076189637,0.7709,4007.6,4007.5,3.2078]
[1761076189836,1.34080479,4007.6,4007.5,3.7699]
[1761076194837,1.34080479,4007.6,4007.5,3.2078]
[1761076195132,1.34080479,4007.6,4007.5,3.9592]
[1761076198945,1.34080479,4007.6,4007.5,0.7514]
[1761076199336,1.34080479,4007.6,4007.3,3.2078]
[1761076199337,0.4462,4007.4,4007.3,3.7432]
[1761076199535,1.35900479,4007.4,4007.3,3.9592]
[1761076200044,1.35900479,4007.4,4007.3,3.2078]
[1761076200240,2.46002748,4008.1,4007.3,8.644]
[1761076200241,0.89582516,4008.1,4007.3,8.644]
[1761076200541,0.7891,4007.7,4007.6,0.5354]
[1761076200746,0.7891,4007.7,4007.3,3.2078]
[1761076200747,0.7891,4007.4,4007.3,3.2078]
[1761076200944,1.36017779,4007.4,4007.3,3.2078]
[1761076201137,1.80915779,4007.4,4007.3,3.2078]
[1761076201334,0.7891,4007.2,4007.1,0.22306514]
[1761076201534,5.7891,4007.2,4007.1,0.00286514]
[1761076201743,0.7891,4006.4,4006.3,3.2078]
[1761076201939,0.79927779,4006.4,4006.3,3.9592]
[1761076202140,1.68136509,4007.1,4007.0,0.7514]
[1761076202445,1.01690171,4007.1,4007.0,0.8815]
[1761076202640,0.57070171,4007.1,4007.0,0.88344137]
[1761076202840,1.35980171,4007.1,4007.0,0.88344137]
[1761076203438,0.57070171,4007.1,4007.0,0.88344137]
[1761076203744,1.35980171,4007.1,4007.0,0.88344137]
[1761076204140,1.14180171,4007.1,4007.0,0.88344137]
[1761076204641,0.57070171,4007.1,4007.0,0.88344137]
[1761076206357,0.79890171,4007.1,4007.0,0.88344137]
[1761076207843,0.57070171,4007.1,4007.0,0.88344137]
[1761076208751,0.57070171,4007.1,4007.0,1.33247137]
[1761076209054,0.7891,4007.7,4007.6,0.7514]
[1761076209249,1.35982429,4007.7,4007.6,0.7514]
[1761076210248,1.35982429,4007.7,4007.3,0.3152]
[1761076210452,0.7891,4007.4,4007.3,0.7514]
[1761076210655,1.35982429,4007.4,4007.3,0.7514]
[1761076211552,0.7891,4007.2,4007.1,1.20042]
[1761076211761,1.35982429,4007.2,4007.1,1.20042]
[1761076212049,1.01692429,4007.2,4007.1,1.20042]
[1761076212453,0.57072429,4007.2,4007.1,1.20042]
[1761076213045,0.79892429,4007.2,4007.1,1.20042]
[1761076213957,1.35982429,4007.2,4007.1,0.2202]
[1761076214257,0.7891,4007.1,4007.0,0.53734137]
[1761076214553,5.01664429,4007.1,4007.0,0.00194137]
[1761076214958,10.01664429,4007.1,4007.0,0.00194137]
[1761076215262,50.81664429,4007.1,4007.0,0.00194137]
[1761076215453,1.01692429,4007.1,4007.0,0.88344137]
[1761076215756,1.01692429,4007.1,4007.0,1.33247137]
[1761076215757,0.79892429,4007.1,4007.0,1.33247137]
[1761076217556,3.654,4007.6,4007.5,0.3503]
[1761076217762,4.56775988,4007.6,4007.5,0.7514]
[1761076218252,4.56775988,4007.6,4007.5,0.2202]
[1761076218451,0.3429,4007.5,4007.3,0.3152]
[1761076218753,1.35995988,4007.4,4007.3,0.7514]
[1761076219055,1.01705988,4007.4,4007.3,1.20039]
[1761076219361,0.79905988,4007.4,4007.3,0.7514]
[1761076219655,1.34775988,4007.4,4007.3,0.2202]
[1761076219852,0.7697,4007.1,4007.0,0.88667137]
[1761076220053,1.34296373,4007.1,4007.0,0.43764137]
[1761076220456,1.34296373,4007.1,4007.0,0.53794137]
[1761076220852,1.34296373,4007.1,4007.0,0.00194137]
[1761076220853,1.79198373,4007.1,4007.0,0.00194137]
[1761076222164,1.79198373,4007.1,4007.0,1.36037137]
[1761076222165,0.57326373,4007.1,4007.0,1.36037137]
[1761076222360,0.80206373,4007.1,4007.0,1.36037137]
[1761076222560,0.80206373,4007.1,4007.0,0.91134137]
[1761076222859,0.89226509,4007.7,4007.1,0.3321]
[1761076223160,1.12106509,4008.0,4007.9,0.7705]
[1761076223865,1.69046509,4008.0,4007.9,0.7705]
[1761076224064,0.7982,4008.0,4007.9,0.7705]
[1761076224266,1.24711,4008.0,4007.9,0.7705]
[1761076224456,0.7982,4008.0,4007.9,0.7705]
[1761076225361,0.7982,4008.0,4007.9,1.21943]
[1761076225665,0.23108912,4008.1,4008.0,0.9094]
[1761076226162,0.23108912,4008.1,4008.0,1.35831]
[1761076226363,0.80048912,4008.1,4008.0,0.5487]
[1761076226555,0.80048912,4008.1,4008.0,0.2166]
[1761076227365,0.80048912,4008.1,4008.0,0.7705]
[1761076227763,0.45528912,4008.1,4008.0,1.35831]
[1761076228263,0.80048912,4008.1,4008.0,0.9094]
[1761076228464,0.80048912,4008.1,4008.0,0.7705]
[1761076228965,0.80048912,4008.1,4008.0,1.35831]
[1761076229165,0.45528912,4008.1,4008.0,1.35831]
[1761076229857,0.00228912,4008.1,4008.0,6.35831]
[1761076230469,0.2288,4009.0,4008.9,0.7705]
[1761076231156,0.7982,4009.0,4008.9,0.7705]
[1761076231357,0.80085417,4009.0,4008.9,0.7705]
[1761076234867,1.37041674,4009.0,4008.9,0.7705]
[1761076236069,0.80101674,4009.0,4008.9,1.21931]